fUSD/lending_fUSD_20250522
["ID","MTS","AMOUNT","RATE_DAILY","PERIOD"]
[361945567,1747903864943,-151.0,0.0003315,7]
[361945568,1747903864954,-151.963698,0.0003315,7]
[361945569,1747903864963,-151.0,0.0003315,7]
[361945570,1747903864973,-226.8,0.0003315,7]
[361945571,1747903864983,-152.694818,0.0003315,7]
[361945572,1747903864993,-151.604534,0.0003315,7]
[361945573,1747903865003,-151.330502,0.0003315,7]
[361945574,1747903865013,-151.0,0.0003315,7]
[361945575,1747903865024,-151.0,0.0003315,7]
[361945576,1747903865034,-151.0,0.0003315,7]
[361945577,1747903865043,-420.0,0.0003315,5]
[361945578,1747903865178,-420.0,0.0003315,5]
[361945579,1747903865188,-420.0,0.0003315,5]
[361945580,1747903865197,-153.283581,0.0003315,7]
[361945581,1747903865207,-420.0,0.0003315,5]
[361945582,1747903865217,-151.79455,0.0003315,7]
[361945583,1747903865227,-151.0,0.0003315,7]
[361945584,1747903865236,-151.0,0.0003315,7]
[361945585,1747903865246,-153.859749,0.0003315,7]
[361945586,1747903865259,-420.0,0.0003315,5]
[361945587,1747903865269,-152.118489,0.0003315,7]
[361945588,1747903865278,-153.055075,0.0003315,7]
[361945589,1747903865288,-420.0,0.0003315,5]
[361945590,1747903865298,-420.0,0.0003315,5]
[361945591,1747903865307,-339.5256664,0.0003315,5]
[361945592,1747903865316,-420.0,0.0003315,5]
[361945593,1747903865325,-420.0,0.0003315,5]
[361945594,1747903865335,-850.2,0.0003315,5]
[361945595,1747903865344,-787.61,0.0003315,5]
[361945596,1747903865353,-472.53,0.0003315,5]
[361945597,1747903865362,-582.35,0.0003315,5]
[361945598,1747903865372,-1063.15,0.0003315,5]
[361945599,1747903865381,-420.0,0.0003315,5]
[361945600,1747903865391,-420.0,0.0003315,5]
[361945601,1747903865401,-420.0,0.0003315,5]
[361945602,1747903865412,-542.78,0.0003315,5]
[361945603,1747903865421,-420.0,0.0003315,5]
[361945604,1747903865431,-1068.42,0.0003315,5]
[361945605,1747903865440,-789.89,0.0003315,5]
[361945606,1747903865450,-151.0,0.0003315,7]
[361945607,1747903865460,-420.0,0.0003315,5]
[361945608,1747903865469,-158.017512,0.0003315,7]
[361945609,1747903865479,-154.720113,0.0003315,7]
[361945610,1747903865488,-422.07445238,0.0003315,5]
[361945611,1747903865498,-433.41,0.0003315,5]
[361945612,1747903865507,-504.53,0.0003315,5]
[361945613,1747903865517,-151.0,0.0003315,7]
[361945614,1747903865526,-420.0,0.0003315,5]
[361945615,1747903865536,-151.0,0.0003315,7]
[361945616,1747903865545,-420.0,0.0003315,5]
[361945617,1747903865554,-420.0,0.0003315,5]
[361945618,1747903865564,-151.911129,0.0003315,7]
[361945619,1747903865573,-650.33,0.0003315,5]
[361945620,1747903865582,-420.0,0.0003315,5]
[361945621,1747903865592,-693.69,0.0003315,5]
[361945622,1747903865601,-1082.87,0.0003315,5]
[361945623,1747903865610,-505.84,0.0003315,5]
[361945624,1747903865619,-420.0,0.0003315,5]
[361945625,1747903865629,-172.893429,0.0003315,7]
[361945626,1747903865638,-151.0,0.0003315,7]
[361945627,1747903865649,-151.0,0.0003315,7]
[361945628,1747903865658,-420.0,0.0003315,5]
[361945629,1747903865668,-423.01278327,0.0003315,5]
[361945630,1747903865678,-263.2,0.0003315,5]
[361945631,1747903865689,-150.48454346,0.0003315,5]
[361945632,1747903865699,-566.9,0.0003315,5]
[361945633,1747903865709,-151.0,0.0003315,7]
[361945634,1747903865719,-420.0,0.0003315,5]
[361945635,1747903865729,-669.56,0.0003315,5]
[361945636,1747903865740,-151.0,0.0003315,7]
[361945637,1747903865751,-420.0,0.0003315,5]
[361945638,1747903865761,-869.75,0.0003315,5]
[361945639,1747903865772,-302.13228586,0.0003315,5]
[361945640,1747903865783,-902.26,0.0003315,5]
[361945641,1747903865794,-420.0,0.0003315,5]
[361945642,1747903865804,-725.39,0.0003315,5]
[361945643,1747903865814,-582.99,0.0003315,5]
[361945644,1747903865826,-151.0,0.0003315,7]
[361945645,1747903865836,-151.0,0.0003315,7]
[361945646,1747903865846,-420.0,0.0003315,5]
[361945647,1747903865857,-420.0,0.0003315,5]
[361945648,1747903865869,-420.0,0.0003315,5]
[361945649,1747903865880,-444.08,0.0003315,5]
[361945650,1747903865890,-420.0,0.0003315,5]
[361945651,1747903865901,-759.8,0.0003315,5]
[361945652,1747903865911,-420.0,0.0003315,5]
[361945653,1747903865921,-420.0,0.0003315,5]
[361945654,1747903865931,-429.05,0.0003315,5]
[361945655,1747903865940,-151.0,0.0003315,7]
[361945656,1747903865950,-420.0,0.0003315,5]
[361945657,1747903865960,-420.0,0.0003315,5]
[361945658,1747903865970,-151.0,0.0003315,7]
[361945659,1747903865980,-151.0,0.0003315,7]
[361945660,1747903865990,-151.0,0.0003315,7]
[361945661,1747903866001,-420.0,0.0003315,5]
[361945662,1747903866010,-420.0,0.0003315,5]
[361945663,1747903866020,-153.100963,0.0003315,7]
[361945664,1747903866030,-420.0,0.0003315,5]
[361945665,1747903866039,-152.493386,0.0003315,7]
[361945666,1747903866049,-420.0,0.0003315,5]
[361945667,1747903866059,-366.42936642,0.0003315,5]
[361945668,1747903866070,-420.0,0.0003315,5]
[361945669,1747903866079,-420.0,0.0003315,5]
[361945670,1747903866088,-479.08,0.0003315,5]
[361945671,1747903866098,-1897.46,0.0003315,5]
[361945672,1747903866107,-425.3314721,0.0003315,5]
[361945673,1747903866117,-420.0,0.0003315,5]
[361945674,1747903866127,-797.9,0.0003315,5]
[361945675,1747903866137,-420.0,0.0003315,5]
[361945676,1747903866148,-940.56,0.0003315,5]
[361945677,1747903866158,-151.0,0.0003315,7]
[361945678,1747903866171,-420.0,0.0003315,5]
[361945679,1747903866182,-217.73159679,0.0003315,5]
[361945680,1747903866192,-264.16,0.0003315,5]
[361945681,1747903866203,-420.0,0.0003315,5]
[361945682,1747903866213,-420.0,0.0003315,5]
[361945683,1747903866222,-420.0,0.0003315,5]
[361945684,1747903866232,-420.0,0.0003315,5]
[361945685,1747903866242,-420.0,0.0003315,5]
[361945686,1747903866254,-1472.92,0.0003315,5]
[361945687,1747903866264,-151.0,0.0003315,7]
[361945688,1747903866274,-151.0,0.0003315,7]
[361945689,1747903866283,-499.84,0.0003315,5]
[361945690,1747903866294,-1341.35,0.0003315,5]
[361945691,1747903866304,-1129.64,0.0003315,5]
[361945692,1747903866313,-420.0,0.0003315,5]
[361945693,1747903866323,-463.88,0.0003315,5]
[361945694,1747903866333,-420.0,0.0003315,5]
[361945695,1747903866342,-420.0,0.0003315,5]
[361945696,1747903866352,-420.0,0.0003315,5]
[361945697,1747903866361,-464.3,0.0003315,5]
[361945698,1747903866371,-420.0,0.0003315,5]
[361945699,1747903866382,-420.0,0.0003315,5]
[361945700,1747903866391,-420.0,0.0003315,5]
[361945701,1747903866401,-928.71,0.0003315,5]
[361945702,1747903866410,-356.01380684,0.0003315,5]
[361945703,1747903866420,-420.0,0.0003315,5]
[361945704,1747903866430,-538.58,0.0003315,5]
[361945705,1747903866439,-420.0,0.0003315,5]
[361945706,1747903866448,-420.0,0.0003315,5]
[361945707,1747903866458,-420.0,0.0003315,5]
[361945708,1747903866467,-152.251292,0.0003315,7]
[361945709,1747903866477,-420.0,0.0003315,5]
[361945710,1747903866486,-420.0,0.0003315,5]
[361945711,1747903866495,-420.0,0.0003315,5]
[361945712,1747903866505,-485.82,0.0003315,5]
[361945713,1747903866517,-420.0,0.0003315,5]
[361945714,1747903866526,-669.29,0.0003315,5]
[361945715,1747903866535,-1674.78,0.0003315,5]
[361945716,1747903866545,-420.0,0.0003315,5]
[361945717,1747903866555,-910.29,0.0003315,5]
[361945718,1747903866564,-151.0,0.0003315,7]
[361945719,1747903866573,-151.0,0.0003315,7]
[361945720,1747903866582,-1077.45,0.0003315,5]
[361945721,1747903866591,-151.0,0.0003315,7]
[361945722,1747903866600,-221.735082,0.0003315,7]
[361945723,1747903866609,-588.1,0.0003315,5]
[361945724,1747903866619,-420.0,0.0003315,5]
[361945725,1747903866628,-420.0,0.0003315,5]
[361945726,1747903866637,-1183.5,0.0003315,5]
[361945727,1747903866647,-915.86,0.0003315,5]
[361945728,1747903866657,-420.0,0.0003315,5]
[361945729,1747903866666,-508.24,0.0003315,5]
[361945730,1747903866676,-420.0,0.0003315,5]
[361945731,1747903866686,-464.03,0.0003315,5]
[361945732,1747903866695,-714.91,0.0003315,5]
[361945733,1747903866704,-420.0,0.0003315,5]
[361945734,1747903866713,-294.556356,0.0003315,7]
[361945735,1747903866722,-294.556356,0.0003315,7]
[361945736,1747903866732,-420.0,0.0003315,5]
[361945737,1747903866741,-420.0,0.0003315,5]
[361945738,1747903866750,-420.0,0.0003315,5]
[361945739,1747903866759,-420.0,0.0003315,5]
[361945740,1747903866768,-294.556356,0.0003315,7]
[361945741,1747903866778,-294.556356,0.0003315,7]
[361945742,1747903866791,-940.25,0.0003315,5]
[361945743,1747903866800,-420.0,0.0003315,5]
[361945744,1747903866809,-470.98,0.0003315,5]
[361945745,1747903866818,-420.0,0.0003315,5]
[361945746,1747903866828,-420.0,0.0003315,5]
[361945747,1747903866837,-1103.52,0.0003315,5]
[361945748,1747903866846,-420.0,0.0003315,5]
[361945749,1747903866856,-419.46409406,0.0003315,5]
[361945750,1747903866866,-555.77,0.0003315,5]
[361945751,1747903866876,-420.0,0.0003315,5]
[361945752,1747903866886,-1671.39,0.0003315,5]
[361945753,1747903866895,-208.36,0.0003315,5]
[361945754,1747903866904,-587.91,0.0003315,5]
[361945755,1747903866914,-420.0,0.0003315,5]
[361945756,1747903866923,-1195.68,0.0003315,5]
[361945757,1747903866933,-420.0,0.0003315,5]
[361945758,1747903866943,-583.98,0.0003315,5]
[361945759,1747903866954,-420.0,0.0003315,5]
[361945760,1747903866964,-420.0,0.0003315,5]
[361945761,1747903866973,-1632.44,0.0003315,5]
[361945762,1747903866983,-420.0,0.0003315,5]
[361945763,1747903866992,-913.53,0.0003315,5]
[361945764,1747903867001,-172.31397768,0.0003315,5]
[361945765,1747903867010,-420.0,0.0003315,5]
[361945766,1747903867020,-199.88187724,0.0003315,5]
[361945767,1747903867029,-748.81,0.0003315,5]
[361945768,1747903867038,-901.77,0.0003315,5]
[361945769,1747903867047,-1007.14,0.0003315,5]
[361945770,1747903867057,-151.713077,0.0003315,7]
[361945771,1747903867067,-420.0,0.0003315,5]
[361945772,1747903867076,-420.0,0.0003315,5]
[361945773,1747903867085,-420.0,0.0003315,5]
[361945774,1747903867095,-766.05,0.0003315,5]
[361945775,1747903867105,-569.0,0.0003315,5]
[361945776,1747903867114,-420.0,0.0003315,5]
[361945777,1747903867123,-420.0,0.0003315,5]
[361945778,1747903867132,-420.0,0.0003315,5]
[361945779,1747903867142,-398.00956358,0.0003315,5]
[361945780,1747903867152,-420.0,0.0003315,5]
[361945781,1747903867161,-420.0,0.0003315,5]
[361945782,1747903867171,-561.92,0.0003315,5]
[361945783,1747903867180,-349.42918207,0.0003315,5]
[361945784,1747903867190,-651.58,0.0003315,5]
[361945785,1747903867199,-420.0,0.0003315,5]
[361945786,1747903867209,-420.0,0.0003315,5]
[361945787,1747903867219,-420.0,0.0003315,5]
[361945788,1747903867229,-420.0,0.0003315,5]
[361945789,1747903867238,-568.73,0.0003315,5]
[361945790,1747903867247,-420.0,0.0003315,5]
[361945791,1747903867258,-420.0,0.0003315,5]
[361945792,1747903867268,-420.0,0.0003315,5]
[361945793,1747903867277,-420.0,0.0003315,5]
[361945794,1747903867287,-17.64551651,0.0003315,5]
[361945795,1747903867885,-402.35448349,0.0003315,5]
[361945796,1747903867896,-151.0,0.0003315,7]
[361945797,1747903867906,-151.0,0.0003315,7]
[361945798,1747903867916,-420.0,0.0003315,5]
[361945799,1747903867926,-532.32,0.0003315,5]
[361945800,1747903867935,-750.79,0.0003315,5]
[361945801,1747903867945,-420.0,0.0003315,5]
[361945802,1747903867955,-420.0,0.0003315,5]
[361945803,1747903867965,-420.0,0.0003315,5]
[361945804,1747903867974,-574.84,0.0003315,5]
[361945805,1747903867984,-420.0,0.0003315,5]
[361945806,1747903867994,-420.0,0.0003315,5]
[361945807,1747903868003,-420.0,0.0003315,5]
[361945808,1747903868013,-420.0,0.0003315,5]
[361945809,1747903868024,-420.0,0.0003315,5]
[361945810,1747903868034,-502.64951071,0.0003315,5]
[361945811,1747903868047,-439.27048929,0.0003315,5]
[361945812,1747903868057,-159.09376772,0.0003315,5]
[361945813,1747903868069,-619.27623228,0.0003315,5]
[361945814,1747903868079,-247.99034868,0.0003315,5]
[361945815,1747903868634,-150.0,0.00032118,2]
[361945816,1747903868645,-306.07957798,0.00032306,2]
[361945817,1747903868656,-150.0,0.00032546,2]
[361945818,1747903868666,-420.0,0.00032876,5]
[361945819,1747903868676,-150.0,0.00032887,2]
[361945820,1747903868686,-150.0,0.0003289,2]
[361945821,1747903868696,-150.0,0.00032993,2]
[361945822,1747903868706,-150.0,0.00033034,2]
[361945823,1747903868716,-150.0,0.00033045,2]
[361945824,1747903868726,-150.0,0.00033055,2]
[361945825,1747903868737,-150.0,0.000331,2]
[361945826,1747903868747,-259.37965132,0.0003315,5]
[361945827,1747903868757,-123.25628554,0.0003315,5]
[361945828,1747903868770,-376.74371446,0.0003315,5]
[361945829,1747903868780,-420.0,0.0003315,5]
[361945830,1747903868795,-420.0,0.0003315,5]
[361945831,1747903868805,-110.13628554,0.0003315,30]
[361945832,1747903868841,-150.0,0.00032985,2]
[361945833,1747903868851,-150.0,0.00033036,2]
[361945834,1747903868862,-150.0,0.00033068,2]
[361945835,1747903868873,-299.75183059,0.0003315,30]
[361945836,1747903868885,-590.11188387,0.0003315,30]
[361945837,1747903868896,-420.0,0.0003315,5]
[361945838,1747903868905,-481.16,0.0003315,5]
[361945839,1747903868915,-1215.06,0.0003315,5]
[361945840,1747903868925,-132.43211446,0.0003315,5]
[361945841,1747903868938,-398.70788554,0.0003315,5]
[361945842,1747903868948,-874.92,0.0003315,5]
[361945843,1747903868958,-420.0,0.0003315,5]
[361945844,1747903868968,-420.0,0.0003315,5]
[361945845,1747903868978,-420.0,0.0003315,5]
[361945846,1747903868987,-461.67,0.0003315,5]
[361945847,1747903868997,-2818.08,0.0003315,5]
[361945848,1747903869007,-420.0,0.0003315,5]
[361945849,1747903869017,-420.0,0.0003315,5]
[361945850,1747903869027,-151.38182876,0.0003315,5]
[361945851,1747903869037,-420.0,0.0003315,5]
[361945852,1747903869047,-151.0,0.0003315,7]
[361945853,1747903869057,-420.0,0.0003315,5]
[361945854,1747903869067,-151.404814,0.0003315,7]
[361945855,1747903869077,-247.71,0.0003315,5]
[361945856,1747903869087,-420.0,0.0003315,5]
[361945857,1747903869097,-420.0,0.0003315,5]
[361945858,1747903869107,-420.0,0.0003315,5]
[361945859,1747903869118,-1317.88,0.0003315,5]
[361945860,1747903869128,-862.04,0.0003315,5]
[361945861,1747903869138,-151.0,0.0003315,7]
[361945862,1747903869149,-420.0,0.0003315,5]
[361945863,1747903869159,-151.0,0.0003315,7]
[361945864,1747903869169,-420.0,0.0003315,5]
[361945865,1747903869179,-420.0,0.0003315,5]
[361945866,1747903869189,-420.0,0.0003315,5]
[361945867,1747903869199,-1012.57,0.0003315,5]
[361945868,1747903869210,-420.0,0.0003315,5]
[361945869,1747903869219,-474.61,0.0003315,5]
[361945870,1747903869230,-420.0,0.0003315,5]
[361945871,1747903869239,-420.0,0.0003315,5]
[361945872,1747903869249,-202.0254717,0.0003315,5]
[361945873,1747903869265,-217.9745283,0.0003315,5]
[361945874,1747903869275,-785.17,0.0003315,5]
[361945875,1747903869284,-420.0,0.0003315,5]
[361945876,1747903869294,-420.0,0.0003315,5]
[361945877,1747903869305,-420.0,0.0003315,5]
[361945878,1747903869314,-462.19,0.0003315,5]
[361945879,1747903869324,-1196.91,0.0003315,5]
[361945880,1747903869334,-991.81,0.0003315,5]
[361945881,1747903869343,-420.0,0.0003315,5]
[361945882,1747903869353,-420.0,0.0003315,5]
[361945883,1747903869362,-709.73,0.0003315,5]
[361945884,1747903869372,-420.0,0.0003315,5]
[361945885,1747903869381,-535.72123187,0.0003315,5]
[361945886,1747903869391,-326.04303983,0.0003315,5]
[361945887,1747903869413,-150.0,0.00033115,2]
[361945888,1747903869422,-93.95696017,0.0003315,5]
[361945889,1747903869432,-420.0,0.0003315,5]
[361945890,1747903869441,-1586.77,0.0003315,5]
[361945891,1747903869451,-1316.98189879,0.0003315,5]
[361945892,1747903869471,-150.0,0.00032887,2]
[361945893,1747903869481,-150.0,0.00032918,2]
[361945894,1747903869491,-150.9,0.0003315,5]
[361945895,1747903869514,-150.0,0.00033083,2]
[361945896,1747903869524,-199.73810121,0.0003315,5]
[361945897,1747903869535,-37.98312969,0.0003315,5]
[361945898,1747903869547,-365.26999993,0.0003315,5]
[361945899,1747903869560,-16.74687038,0.0003315,5]
[361945900,1747903869570,-420.0,0.0003315,5]
[361945901,1747903869579,-1229.43,0.0003315,5]
[361945902,1747903869589,-430.31,0.0003315,5]
[361945903,1747903869599,-420.0,0.0003315,5]
[361945904,1747903869609,-720.81,0.0003315,5]
[361945905,1747903869957,-420.0,0.0003315,5]
[361945906,1747903869968,-420.0,0.0003315,5]
[361945907,1747903869978,-206.24531168,0.0003315,5]
[361945908,1747903869987,-916.46,0.0003315,5]
[361945909,1747903869998,-420.0,0.0003315,5]
[361945910,1747903870007,-420.0,0.0003315,5]
[361945911,1747903870016,-420.0,0.0003315,5]
[361945912,1747903870026,-753.48,0.0003315,5]
[361945913,1747903870036,-1522.88,0.0003315,5]
[361945914,1747903870046,-1317.02,0.0003315,5]
[361945915,1747903870056,-895.65,0.0003315,5]
[361945916,1747903870066,-420.0,0.0003315,5]
[361945917,1747903870076,-920.27,0.0003315,5]
[361945918,1747903870086,-420.0,0.0003315,5]
[361945919,1747903870095,-720.91,0.0003315,5]
[361945920,1747903870105,-420.0,0.0003315,5]
[361945921,1747903870115,-1210.29,0.0003315,5]
[361945922,1747903870124,-420.0,0.0003315,5]
[361945923,1747903870134,-420.0,0.0003315,5]
[361945924,1747903870143,-828.05,0.0003315,5]
[361945925,1747903870155,-799.25,0.0003315,5]
[361945926,1747903870165,-647.48,0.0003315,5]
[361945927,1747903870174,-420.0,0.0003315,5]
[361945928,1747903870183,-420.0,0.0003315,5]
[361945929,1747903870192,-610.77,0.0003315,5]
[361945930,1747903870202,-1460.51,0.0003315,5]
[361945931,1747903870210,-420.0,0.0003315,5]
[361945932,1747903870220,-420.0,0.0003315,5]
[361945933,1747903870229,-227.65781793,0.0003315,5]
[361945934,1747903979756,250.0,0.00015,2]
[361945935,1747903980824,300.0,0.00017,2]
[361945938,1747904130504,239.85,0.00013699,2]
[361945960,1747904813138,-350.0,0.00019,2]
[361945961,1747904813161,-239.85,0.00020187,2]
[361945962,1747904813184,-300.74,0.00020356,2]
[361945963,1747904813206,-305.24,0.00020356,2]
[361945964,1747904813227,-400.0,0.00021,2]
[361945965,1747904813251,-450.0,0.00023,2]
[361945966,1747904813272,-500.0,0.00025,2]
[361945967,1747904813293,-217.932,0.00025338,2]
[361945968,1747904813314,-255.025,0.00025338,2]
[361945969,1747904813334,-1151.0,0.00025338,2]
[361945970,1747904813356,-207.4,0.00025714,2]
[361945971,1747904813379,-63.22191509,0.00026676,2]
[361945996,1747905032253,-2881.0,0.000257,5]
[361945997,1747905032263,-207.4,0.00025714,2]
[361945998,1747905032273,-176.62808491,0.00026676,2]
[361945999,1747905032281,-1151.0,0.00026805,2]
[361946000,1747905032291,-550.0,0.00027,2]
[361946001,1747905032300,-215.0738,0.00027083,2]
[361946002,1747905032309,-5000.0,0.000271,30]
[361946003,1747905032318,-250.0,0.00027141,2]
[361946004,1747905032327,-300.0,0.00027191,2]
[361946005,1747905032337,-818.18294332,0.00027192,2]
[361946006,1747905032346,-495.73,0.00027815,2]
[361946007,1747905032355,-150.69947612,0.000279,18]
[361946008,1747905032364,-413.01617699,0.000282,2]
[361946009,1747905032373,-150.69947596,0.00028383,18]
[361946010,1747905032383,-223.0315306,0.00028452,2]
[361946011,1747905032391,-150.69947596,0.00028866,19]
[361946012,1747905032401,-600.0,0.00029,2]
[361946013,1747905032410,-151.67,0.00029,2]
[361946014,1747905032419,-500.0,0.00029288,2]
[361946015,1747905032428,-150.69947596,0.00029348,20]
[361946016,1747905032437,-420.0,0.00029391,2]
[361946017,1747905032447,-199.79,0.00029652,120]
[361946018,1747905032456,-197.54,0.00029669,5]
[361946019,1747905032466,-236.63956018,0.00029687,2]
[361946020,1747905032478,-13.36043982,0.00029687,2]
[361946021,1747905032487,-373.77178551,0.00029805,2]
[361946022,1747905032498,-777.22821449,0.00029805,2]
[361946023,1747905032507,-231.28369723,0.00029821,2]
[361946024,1747905032516,-150.69947596,0.00029831,21]
[361946025,1747905032526,-146.11673921,0.00029937,2]
[361946026,1747905032541,-4.07326079,0.00029937,2]
[361946027,1747905032551,-495.73,0.00030079,2]
[361946028,1747905032560,-372.54,0.00030198,2]
[361946029,1747905032570,-150.0,0.00030223,7]
[361946030,1747905032579,-1549.44886125,0.00030242,2]
[361946031,1747905032602,-1114.75065185,0.00030242,2]
[361946032,1747905032613,-852.8604869,0.00030242,2]
[361946033,1747905032623,-150.69947596,0.00030314,22]
[361946035,1747905032632,-299.99,0.0003062,12]
[361946036,1747905032641,-6661.2,0.0003062,2]
[361946037,1747905032650,-7551.58,0.0003062,2]
[361946038,1747905032659,-1085.52,0.0003062,2]
[361946039,1747905032669,-150.99,0.0003062,2]
[361946040,1747905032678,-626.55,0.0003068,2]
[361946041,1747905032687,-204.0,0.0003073,2]
[361946042,1747905032698,-150.69947596,0.00030797,23]
[361946043,1747905032707,-650.0,0.00031,2]
[361946044,1747905032716,-439.64,0.00031037,2]
[361946045,1747905032725,-237.0,0.000311,2]
[361946046,1747905032735,-375.0,0.000311,2]
[361946047,1747905032745,-766.0,0.000311,2]
[361946048,1747905032754,-165.08,0.00031145,2]
[361946049,1747905032763,-239.84119403,0.0003119,2]
[361946050,1747905032772,-150.69947596,0.00031279,24]
[361946051,1747905032782,-300.0,0.0003131,2]
[361946052,1747905032791,-150.69947596,0.00031762,25]
[361946054,1747905032801,-555.14385545,0.000321,2]
[361946056,1747905032810,-1000.0,0.00032114,2]
[361946058,1747905032819,-941.988746,0.00032148,4]
[361946060,1747905032828,-150.69947596,0.00032245,26]
[361946062,1747905032838,-495.73,0.00032343,2]
[361946064,1747905032848,-248.71531821,0.00032559,2]
[361946066,1747905032857,-94.44719141,0.00032581,33]
[361946068,1747905032868,-2500.0,0.00032581,33]
[361946073,1747905032902,-203.38880859,0.00032581,33]
[361946075,1747905032913,-171.87,0.00032582,33]
[361946077,1747905032922,-300.0,0.00032679,2]
[361946079,1747905032931,-150.69947596,0.00032728,27]
[361946081,1747905032941,-2500.0,0.00032766,2]
[361946083,1747905032950,-8316.72029108,0.00032766,2]
[361946085,1747905032960,-1595.78,0.00032776,2]
[361946087,1747905032969,-1000.0,0.00032776,2]
[361946089,1747905032978,-1000.0,0.00032776,2]
[361946091,1747905032987,-4010.5053,0.00032776,2]
[361946093,1747905032996,-166.48856697,0.00032776,15]
[361946095,1747905033006,-152.99119601,0.00032776,2]
[361946097,1747905033015,-153.03978899,0.00032776,2]
[361946099,1747905033024,-1549.0,0.000328,7]
[361946101,1747905033036,-208.46720552,0.00032805,2]
[361946103,1747905033047,-199.34379448,0.00032805,2]
[361946105,1747905033057,-5698.2,0.00032856,2]
[361946108,1747905033068,-335.73609119,0.00032865,2]
[361946109,1747905033077,-500.0,0.00032865,2]
[361946111,1747905033086,-500.0,0.00032865,2]
[361946113,1747905033096,-412.71524328,0.00032865,2]
[361946115,1747905033105,-5733.52656795,0.00032866,2]
[361946117,1747905033116,-12265.471,0.00032866,2]
[361946120,1747905033128,-3718.25054353,0.00032866,2]
[361946122,1747905033139,-2114.03397105,0.00032866,2]
[361946124,1747905033150,-845.72788746,0.00032866,2]
[361946126,1747905033169,-48988.39495585,0.00032866,2]
[361946129,1747905033179,-75669.6682733,0.00032866,2]
[361946605,1747905038183,-631.14144959,0.00032866,2]
[361946606,1747905038196,-2734.13906851,0.00032866,2]
[361946607,1747905038207,-531.63683674,0.00032866,2]
[361946608,1747905038218,-3279.73300446,0.00032866,2]
[361946609,1747905038229,-269.66323072,0.00032866,2]
[361946611,1747905038241,-15209.2532506,0.00032866,2]
[361946624,1747905038357,-452.69426491,0.00032866,2]
[361946627,1747905038381,-629.99857469,0.00032866,2]
[361946630,1747905038393,-468.36485935,0.00032866,2]
[361946632,1747905038404,-1300.0,0.00032866,2]
[361946634,1747905038419,-1334.1,0.00032866,2]
[361946638,1747905038445,-1483.64623435,0.00032866,2]
[361946640,1747905038457,-1216.83993224,0.00032866,2]
[361946836,1747905040294,-8542.1685993,0.00032866,2]
[361946862,1747905040528,-933.36463944,0.00032866,2]
[361946864,1747905040539,-4971.11999996,0.00032866,2]
[361946866,1747905040551,-3095.2971693,0.00032866,2]
[361946879,1747905040666,-18696.7005497,0.00032866,2]
[361946885,1747905040720,-657.96086,0.00032866,2]
[361947134,1747905043398,-702.49311156,0.00032776,6]
[361947136,1747905043408,-3792.655634,0.00032866,2]
[361947139,1747905043419,-977.10874652,0.00032866,2]
[361947143,1747905043428,-5698.2,0.00032866,2]
[361947144,1747905043437,-200.0,0.00032868,2]
[361947147,1747905043449,-500.0,0.00032873,5]
[361947150,1747905043458,-192.01956485,0.00032875,2]